fUST/lending_fUST_20250525
["ID","MTS","AMOUNT","RATE_DAILY","PERIOD"]
[362222304,1748111453821,-430.0,0.00023287,2]
[362222305,1748111453830,-430.0,0.00023287,2]
[362222306,1748111453839,-430.0,0.00023287,2]
[362222307,1748111453849,-430.0,0.00023287,2]
[362222308,1748111453858,-430.0,0.00023287,2]
[362222309,1748111453868,-575.47,0.00023287,2]
[362222310,1748111453877,-500.0,0.00023287,2]
[362222311,1748111453887,-430.0,0.00023287,2]
[362222312,1748111453897,-430.0,0.00023287,2]
[362222313,1748111453907,-430.0,0.00023287,2]
[362222314,1748111453916,-386.33,0.00023287,2]
[362222315,1748111453926,-434.73,0.00023287,2]
[362222316,1748111453936,-430.0,0.00023287,2]
[362222317,1748111453946,-430.0,0.00023287,2]
[362222318,1748111453956,-510.62,0.00023287,2]
[362222319,1748111453966,-430.0,0.00023287,2]
[362222320,1748111453976,-430.0,0.00023287,2]
[362222321,1748111453991,-727.84,0.00023287,2]
[362222322,1748111454001,-233.13,0.00023287,2]
[362222323,1748111454011,-430.0,0.00023287,2]
[362222324,1748111454020,-1103.46,0.00023287,2]
[362222325,1748111454030,-430.0,0.00023287,2]
[362222326,1748111454040,-430.0,0.00023287,2]
[362222327,1748111454050,-430.0,0.00023287,2]
[362222328,1748111454061,-430.0,0.00023287,2]
[362222329,1748111454070,-430.0,0.00023287,2]
[362222330,1748111454080,-486.14,0.00023287,2]
[362222331,1748111454090,-430.0,0.00023287,2]
[362222332,1748111454100,-733.93,0.00023287,2]
[362222333,1748111454110,-430.0,0.00023287,2]
[362222334,1748111454120,-430.0,0.00023287,2]
[362222335,1748111454129,-384.73,0.00023287,2]
[362222336,1748111454139,-1729.99,0.00023287,2]
[362222337,1748111454149,-1149.86,0.00023287,2]
[362222338,1748111454158,-430.0,0.00023287,2]
[362222339,1748111454167,-706.48,0.00023287,2]
[362222340,1748111454176,-789.63,0.00023287,2]
[362222341,1748111454185,-430.0,0.00023287,2]
[362222342,1748111454195,-3691.92,0.00023287,2]
[362222343,1748111454205,-430.0,0.00023287,2]
[362222344,1748111454214,-430.0,0.00023287,2]
[362222345,1748111454223,-513.34,0.00023287,2]
[362222346,1748111454234,-174.2865763,0.00023315,2]
[362222347,1748111454243,-1500.0,0.00023372,2]
[362222348,1748111454252,-491.551767,0.000234,7]
[362222349,1748111454262,-1500.0,0.00023423,2]
[362222350,1748111454271,-500.0,0.00023477,2]
[362222351,1748111454281,-151.0,0.00023504,2]
[362222352,1748111454291,-151.0,0.00023504,2]
[362222353,1748111454300,-207.4,0.00023504,2]
[362222354,1748111454312,-194.08542105,0.00023504,2]
[362222355,1748111454321,-543.47124724,0.00023517,2]
[362222356,1748111454331,-404.0,0.00023536,2]
[362222357,1748111454341,-151.0,0.00023561,7]
[362222358,1748111454351,-430.0,0.00023561,2]
[362222359,1748111454361,-430.0,0.00023561,2]
[362222360,1748111454371,-430.0,0.00023561,2]
[362222361,1748111454380,-430.0,0.00023561,2]
[362222362,1748111454389,-430.0,0.00023561,2]
[362222363,1748111454400,-430.0,0.00023561,2]
[362222364,1748111454409,-166.92,0.00023561,2]
[362222365,1748111454420,-430.0,0.00023561,2]
[362222366,1748111454430,-464.69,0.00023561,2]
[362222367,1748111454439,-470.83,0.00023561,2]
[362222368,1748111454448,-430.0,0.00023561,2]
[362222369,1748111454458,-430.0,0.00023561,2]
[362222370,1748111454467,-430.0,0.00023561,2]
[362222371,1748111454477,-430.0,0.00023561,2]
[362222372,1748111454487,-430.0,0.00023561,2]
[362222373,1748111454496,-430.0,0.00023561,2]
[362222374,1748111454605,-2457.02,0.00023561,2]
[362222375,1748111454616,-430.0,0.00023561,2]
[362222376,1748111454626,-430.0,0.00023561,2]
[362222377,1748111454636,-910.04,0.00023561,2]
[362222378,1748111454646,-674.31,0.00023561,2]
[362222379,1748111454655,-1902.1,0.00023561,2]
[362222380,1748111454665,-430.0,0.00023561,2]
[362222381,1748111454674,-430.0,0.00023561,2]
[362222382,1748111454684,-430.0,0.00023561,2]
[362222383,1748111454694,-430.0,0.00023561,2]
[362222384,1748111454704,-430.0,0.00023561,2]
[362222385,1748111454713,-430.0,0.00023561,2]
[362222386,1748111454722,-430.0,0.00023561,2]
[362222387,1748111454731,-575.47,0.00023561,2]
[362222388,1748111454741,-430.0,0.00023561,2]
[362222389,1748111454750,-430.0,0.00023561,2]
[362222390,1748111454760,-434.73,0.00023561,2]
[362222391,1748111454770,-430.0,0.00023561,2]
[362222392,1748111454779,-430.0,0.00023561,2]
[362222393,1748111454789,-510.62,0.00023561,2]
[362222394,1748111454799,-430.0,0.00023561,2]
[362222395,1748111454808,-430.0,0.00023561,2]
[362222396,1748111454819,-727.84,0.00023561,2]
[362222397,1748111454829,-430.0,0.00023561,2]
[362222398,1748111454838,-1103.46,0.00023561,2]
[362222399,1748111454848,-430.0,0.00023561,2]
[362222400,1748111454857,-430.0,0.00023561,2]
[362222401,1748111454868,-430.0,0.00023561,2]
[362222402,1748111454878,-430.0,0.00023561,2]
[362222403,1748111454888,-430.0,0.00023561,2]
[362222404,1748111454897,-486.14,0.00023561,2]
[362222405,1748111454907,-430.0,0.00023561,2]
[362222406,1748111454917,-733.93,0.00023561,2]
[362222407,1748111454926,-430.0,0.00023561,2]
[362222408,1748111454936,-201.49,0.00023561,2]
[362222409,1748111454946,-1729.99,0.00023561,2]
[362222410,1748111454955,-1149.86,0.00023561,2]
[362222411,1748111454965,-430.0,0.00023561,2]
[362222412,1748111454975,-706.48,0.00023561,2]
[362222413,1748111454988,-789.63,0.00023561,2]
[362222414,1748111454998,-430.0,0.00023561,2]
[362222415,1748111455008,-3691.92,0.00023561,2]
[362222416,1748111455017,-430.0,0.00023561,2]
[362222417,1748111455028,-513.34,0.00023561,2]
[362222418,1748111455038,-1000.0,0.000237,2]
[362222419,1748111455048,-466.0,0.00023735,2]
[362222420,1748111455059,-430.0,0.00023835,2]
[362222421,1748111455069,-430.0,0.00023835,2]
[362222422,1748111455079,-430.0,0.00023835,2]
[362222423,1748111455089,-430.0,0.00023835,2]
[362222424,1748111455099,-430.0,0.00023835,2]
[362222425,1748111455109,-345.18,0.00023835,2]
[362222426,1748111455119,-491.551775,0.00023835,7]
[362222427,1748111455128,-430.0,0.00023835,2]
[362222428,1748111455138,-464.69,0.00023835,2]
[362222429,1748111455148,-470.83,0.00023835,2]
[362222430,1748111455158,-430.0,0.00023835,2]
[362222431,1748111455168,-430.0,0.00023835,2]
[362222432,1748111455177,-430.0,0.00023835,2]
[362222433,1748111455187,-430.0,0.00023835,2]
[362222434,1748111455197,-430.0,0.00023835,2]
[362222435,1748111455207,-430.0,0.00023835,2]
[362222436,1748111455216,-2457.02,0.00023835,2]
[362222437,1748111455226,-430.0,0.00023835,2]
[362222438,1748111455236,-910.04,0.00023835,2]
[362222439,1748111455246,-674.31,0.00023835,2]
[362222440,1748111455255,-1902.1,0.00023835,2]
[362222441,1748111455265,-430.0,0.00023835,2]
[362222442,1748111455275,-430.0,0.00023835,2]
[362222443,1748111455285,-430.0,0.00023835,2]
[362222444,1748111455295,-430.0,0.00023835,2]
[362222445,1748111455304,-430.0,0.00023835,2]
[362222446,1748111455314,-430.0,0.00023835,2]
[362222447,1748111455323,-430.0,0.00023835,2]
[362222448,1748111455333,-575.47,0.00023835,2]
[362222449,1748111455343,-430.0,0.00023835,2]
[362222450,1748111455352,-434.73,0.00023835,2]
[362222451,1748111455362,-430.0,0.00023835,2]
[362222452,1748111455372,-510.62,0.00023835,2]
[362222453,1748111455381,-430.0,0.00023835,2]
[362222454,1748111455391,-430.0,0.00023835,2]
[362222455,1748111455401,-727.84,0.00023835,2]
[362222456,1748111455410,-430.0,0.00023835,2]
[362222457,1748111455420,-1103.46,0.00023835,2]
[362222458,1748111455429,-430.0,0.00023835,2]
[362222459,1748111455438,-430.0,0.00023835,2]
[362222460,1748111455447,-430.0,0.00023835,2]
[362222461,1748111455456,-230.72,0.00023835,2]
[362222462,1748111455465,-430.0,0.00023835,2]
[362222463,1748111455474,-486.14,0.00023835,2]
[362222464,1748111455484,-430.0,0.00023835,2]
[362222465,1748111455493,-733.93,0.00023835,2]
[362222466,1748111455502,-431.23,0.00023835,2]
[362222467,1748111455512,-1729.99,0.00023835,2]
[362222468,1748111455522,-1149.86,0.00023835,2]
[362222469,1748111455531,-430.0,0.00023835,2]
[362222470,1748111455541,-706.48,0.00023835,2]
[362222471,1748111455550,-789.63,0.00023835,2]
[362222472,1748111455559,-430.0,0.00023835,2]
[362222473,1748111455569,-3691.92,0.00023835,2]
[362222474,1748111455578,-430.0,0.00023835,2]
[362222475,1748111455587,-513.34,0.00023835,2]
[362222476,1748111455596,-463.8245551,0.00023863,2]
[362222477,1748111455605,-203.52747486,0.0002387,2]
[362222478,1748111455616,-2656.83581194,0.000239,2]
[362222479,1748111455625,-1000.0,0.0002392,2]
[362222480,1748111455634,-500.0,0.00023971,2]
[362222481,1748111455643,-4003.2074639,0.00024,2]
[362222482,1748111455652,-1004.01767142,0.00024,7]
[362222483,1748111455662,-1000.0,0.00024,24]
[362222484,1748111455671,-2146.73235429,0.00024,2]
[362222485,1748111455681,-5030.0,0.00024,2]
[362222486,1748111455690,-229.12393663,0.00024,7]
[362222487,1748111455699,-200.0,0.0002404,9]
[362222488,1748111455709,-430.0,0.00024109,2]
[362222489,1748111455718,-430.0,0.00024109,2]
[362222490,1748111455727,-173.94,0.00024109,2]
[362222491,1748111455737,-537.34,0.00024109,2]
[362222492,1748111455746,-430.0,0.00024109,2]
[362222493,1748111455755,-430.0,0.00024109,2]
[362222494,1748111455765,-464.69,0.00024109,2]
[362222495,1748111455774,-470.83,0.00024109,2]
[362222496,1748111455783,-430.0,0.00024109,2]
[362222497,1748111455793,-430.0,0.00024109,2]
[362222498,1748111455802,-430.0,0.00024109,2]
[362222499,1748111455811,-430.0,0.00024109,2]
[362222500,1748111455822,-430.0,0.00024109,2]
[362222501,1748111455833,-430.0,0.00024109,2]
[362222502,1748111455843,-2457.02,0.00024109,2]
[362222503,1748111455855,-430.0,0.00024109,2]
[362222504,1748111455867,-910.04,0.00024109,2]
[362222505,1748111455877,-674.31,0.00024109,2]
[362222506,1748111455888,-1902.1,0.00024109,2]
[362222507,1748111455898,-430.0,0.00024109,2]
[362222508,1748111455907,-430.0,0.00024109,2]
[362222509,1748111455918,-430.0,0.00024109,2]
[362222510,1748111455929,-430.0,0.00024109,2]
[362222511,1748111455938,-364.14,0.00024109,2]
[362222512,1748111455948,-430.0,0.00024109,2]
[362222513,1748111455958,-430.0,0.00024109,2]
[362222514,1748111455967,-575.47,0.00024109,2]
[362222515,1748111455976,-430.0,0.00024109,2]
[362222516,1748111455992,-434.73,0.00024109,2]
[362222517,1748111456002,-430.0,0.00024109,2]
[362222518,1748111456012,-510.62,0.00024109,2]
[362222519,1748111456022,-430.0,0.00024109,2]
[362222520,1748111456033,-430.0,0.00024109,2]
[362222521,1748111456043,-727.84,0.00024109,2]
[362222522,1748111456053,-430.0,0.00024109,2]
[362222523,1748111456064,-1103.46,0.00024109,2]
[362222524,1748111456073,-430.0,0.00024109,2]
[362222525,1748111456083,-430.0,0.00024109,2]
[362222526,1748111456093,-430.0,0.00024109,2]
[362222527,1748111456104,-430.0,0.00024109,2]
[362222528,1748111456113,-486.14,0.00024109,2]
[362222529,1748111456123,-430.0,0.00024109,2]
[362222530,1748111456133,-733.93,0.00024109,2]
[362222531,1748111456144,-1729.99,0.00024109,2]
[362222532,1748111456153,-546.35,0.00024109,2]
[362222533,1748111456163,-1149.86,0.00024109,2]
[362222534,1748111456173,-706.48,0.00024109,2]
[362222535,1748111456182,-789.63,0.00024109,2]
[362222536,1748111456192,-430.0,0.00024109,2]
[362222537,1748111456201,-3691.92,0.00024109,2]
[362222538,1748111456211,-430.0,0.00024109,2]
[362222539,1748111456220,-513.34,0.00024109,2]
[362222540,1748111456230,-1000.0,0.000242,2]
[362222541,1748111456240,-1200.0,0.00024256,2]
[362222542,1748111456251,-222.287773,0.00024277,2]
[362222543,1748111456261,-1317.0,0.00024312,21]
[362222544,1748111456271,-151.0,0.00024382,7]
[362222545,1748111456280,-158.04,0.00024383,2]
[362222546,1748111456289,-347.44,0.00024383,2]
[362222547,1748111456298,-464.69,0.00024383,2]
[362222548,1748111456308,-470.83,0.00024383,2]
[362222549,1748111456318,-430.0,0.00024383,2]
[362222550,1748111456328,-430.0,0.00024383,2]
[362222551,1748111456338,-430.0,0.00024383,2]
[362222552,1748111456347,-430.0,0.00024383,2]
[362222553,1748111456357,-430.0,0.00024383,2]
[362222554,1748111456367,-430.0,0.00024383,2]
[362222555,1748111456376,-2457.02,0.00024383,2]
[362222556,1748111456386,-430.0,0.00024383,2]
[362222557,1748111456396,-910.04,0.00024383,2]
[362222558,1748111456405,-674.31,0.00024383,2]
[362222559,1748111456415,-1902.1,0.00024383,2]
[362222560,1748111456424,-430.0,0.00024383,2]
[362222561,1748111456434,-430.0,0.00024383,2]
[362222562,1748111456444,-430.0,0.00024383,2]
[362222563,1748111456453,-430.0,0.00024383,2]
[362222564,1748111456463,-430.0,0.00024383,2]
[362222565,1748111456472,-430.0,0.00024383,2]
[362222566,1748111456482,-575.47,0.00024383,2]
[362222567,1748111456492,-430.0,0.00024383,2]
[362222568,1748111456502,-434.73,0.00024383,2]
[362222569,1748111456511,-430.0,0.00024383,2]
[362222570,1748111456521,-510.62,0.00024383,2]
[362222571,1748111456531,-430.0,0.00024383,2]
[362222572,1748111456541,-430.0,0.00024383,2]
[362222573,1748111456550,-727.84,0.00024383,2]
[362222574,1748111456560,-430.0,0.00024383,2]
[362222575,1748111456570,-1103.46,0.00024383,2]
[362222576,1748111456579,-430.0,0.00024383,2]
[362222577,1748111456589,-430.0,0.00024383,2]
[362222578,1748111456598,-430.0,0.00024383,2]
[362222579,1748111456608,-395.26,0.00024383,2]
[362222580,1748111456618,-486.14,0.00024383,2]
[362222581,1748111456627,-430.0,0.00024383,2]
[362222582,1748111456637,-733.93,0.00024383,2]
[362222583,1748111456646,-1729.99,0.00024383,2]
[362222584,1748111456656,-1149.86,0.00024383,2]
[362222585,1748111456666,-706.48,0.00024383,2]
[362222586,1748111456675,-789.63,0.00024383,2]
[362222587,1748111456685,-430.0,0.00024383,2]
[362222588,1748111456694,-3691.92,0.00024383,2]
[362222589,1748111456704,-430.0,0.00024383,2]
[362222590,1748111456713,-513.34,0.00024383,2]
[362222591,1748111456723,-1883.15174182,0.00024453,2]
[362222592,1748111456732,-12616.7021502,0.00024453,2]
[362222593,1748111456742,-201.0,0.00024649,2]
[362222594,1748111456751,-464.69,0.00024657,2]
[362222595,1748111456762,-470.83,0.00024657,2]
[362222596,1748111456772,-430.0,0.00024657,2]
[362222597,1748111456782,-430.0,0.00024657,2]
[362222598,1748111456792,-430.0,0.00024657,2]
[362222599,1748111456802,-430.0,0.00024657,2]
[362222600,1748111456811,-430.0,0.00024657,2]
[362222601,1748111456822,-430.0,0.00024657,2]
[362222602,1748111456833,-2457.02,0.00024657,2]
[362222603,1748111456844,-430.0,0.00024657,2]
[362222604,1748111456855,-910.04,0.00024657,2]
[362222605,1748111456865,-674.31,0.00024657,2]
[362222606,1748111456874,-1902.1,0.00024657,2]
[362222607,1748111456883,-430.0,0.00024657,2]
[362222608,1748111456893,-430.0,0.00024657,2]
[362222609,1748111456994,-430.0,0.00024657,2]
[362222610,1748111457003,-430.0,0.00024657,2]
[362222611,1748111457012,-430.0,0.00024657,2]
[362222612,1748111457022,-430.0,0.00024657,2]
[362222613,1748111457031,-575.47,0.00024657,2]
[362222614,1748111457041,-430.0,0.00024657,2]
[362222615,1748111457050,-434.73,0.00024657,2]
[362222616,1748111457060,-294.13,0.00024657,2]
[362222617,1748111457069,-510.62,0.00024657,2]
[362222618,1748111457079,-430.0,0.00024657,2]
[362222619,1748111457089,-430.0,0.00024657,2]
[362222620,1748111457099,-727.84,0.00024657,2]
[362222621,1748111457109,-430.0,0.00024657,2]
[362222622,1748111457118,-1103.46,0.00024657,2]
[362222623,1748111457129,-498.06,0.00024657,2]
[362222624,1748111457138,-430.0,0.00024657,2]
[362222625,1748111457147,-430.0,0.00024657,2]
[362222626,1748111457157,-486.14,0.00024657,2]
[362222627,1748111457166,-430.0,0.00024657,2]
[362222628,1748111457175,-733.93,0.00024657,2]
[362222629,1748111457185,-1729.99,0.00024657,2]
[362222630,1748111457195,-1767.47,0.00024657,4]
[362222631,1748111457205,-1149.86,0.00024657,2]
[362222632,1748111457214,-706.48,0.00024657,2]
[362222633,1748111457225,-789.63,0.00024657,2]
[362222634,1748111457234,-430.0,0.00024657,2]
[362222635,1748111457243,-3691.92,0.00024657,2]
[362222636,1748111457254,-430.0,0.00024657,2]
[362222637,1748111457264,-500.0,0.00024673,2]
[362222638,1748111457276,-500.0,0.00024673,2]
[362222639,1748111457285,-153.0,0.00024685,2]
[362222640,1748111457295,-153.0,0.00024685,2]
[362222641,1748111457305,-153.0,0.00024685,2]
[362222642,1748111457316,-277729.41903662,0.000247,7]
[362222643,1748111457325,-151.0,0.000247,7]
[362222644,1748111457335,-152.682508,0.000247,7]
[362222645,1748111457344,-1000.0,0.000247,2]
[362222646,1748111457354,-2408.35631566,0.000247,2]
[362222647,1748111457365,-229.12393663,0.000247,7]
[362222648,1748111457374,-200.0,0.00024712,120]
[362222649,1748111457383,-200.0,0.00024718,120]
[362222650,1748111457392,-418.0,0.00024739,15]
[362222651,1748111457402,-500.0,0.00024773,2]
[362222652,1748111457411,-265.80336035,0.00024773,2]
[362222653,1748111457420,-438.93216466,0.00024773,2]
[362222654,1748111457429,-500.57332119,0.00024773,2]
[362222655,1748111457438,-500.0,0.00024773,2]
[362222656,1748111457448,-500.0,0.00024773,2]
[362222657,1748111457457,-500.0,0.00024773,2]
[362222658,1748111457466,-500.82401651,0.00024773,2]
[362222659,1748111457476,-500.0,0.00024773,2]
[362222660,1748111457484,-500.0,0.00024773,2]
[362222661,1748111457493,-500.0,0.00024773,2]
[362222662,1748111457502,-500.0,0.00024773,2]
[362222663,1748111457511,-500.0,0.00024773,2]
[362222664,1748111457520,-500.0,0.00024773,2]
[362222665,1748111457529,-500.0,0.00024773,2]
[362222666,1748111457538,-500.0,0.00024773,2]
[362222667,1748111457547,-500.0,0.00024773,2]
[362222668,1748111457556,-151.11080258,0.00024773,2]
[362222669,1748111457566,-512.50614982,0.00024773,2]
[362222670,1748111457575,-600.0,0.00024773,2]
[362222671,1748111457584,-500.0,0.00024773,2]
[362222672,1748111457593,-500.0,0.00024773,2]
[362222673,1748111457603,-500.0,0.00024773,2]
[362222674,1748111457612,-500.0,0.00024773,2]
[362222675,1748111457621,-500.0,0.00024773,2]
[362222676,1748111457630,-500.0,0.00024773,2]
[362222677,1748111457639,-500.0,0.00024773,2]
[362222678,1748111457649,-500.0,0.00024773,2]
[362222679,1748111457658,-500.0,0.00024773,2]
[362222680,1748111457668,-500.0,0.00024773,2]
[362222681,1748111457679,-500.0,0.00024773,2]
[362222682,1748111457688,-501.34430196,0.00024773,2]
[362222683,1748111457697,-500.28043453,0.00024773,2]
[362222684,1748111457708,-500.0,0.00024773,2]
[362222685,1748111457717,-500.0,0.00024773,2]
[362222686,1748111457725,-500.0,0.00024773,2]
[362222687,1748111457735,-152.25202375,0.00024773,2]
[362222688,1748111457745,-500.0,0.00024773,2]
[362222689,1748111457754,-522.66312765,0.00024773,2]
[362222690,1748111457764,-500.0,0.00024773,2]
[362222691,1748111457774,-200.0,0.00024774,120]
[362222692,1748111457783,-200.0,0.000248,2]
[362222693,1748111457791,-156.8,0.000248,2]
[362222694,1748111457801,-10513.87039097,0.000248,7]
[362222695,1748111457909,-433.21901907,0.000248,7]
[362222696,1748111457920,-44607.7324806,0.000248,7]
[362222697,1748111457932,-16719.43717832,0.000248,7]
[362222698,1748111645991,150.0,0.00014865,2]
[362222699,1748111779546,5516.42,0.00021917,30]
[362222700,1748111797107,2588.3,0.00021917,30]
[362222702,1748111861201,168.451949,0.00013699,2]
[362222707,1748112632709,-885.61193731,0.00019817,2]
[362222708,1748112632719,-760.334,0.0002,5]
[362222709,1748112632729,-10980.5184335,0.0002091,2]
[362222710,1748112632738,-1000.0,0.00020968,2]
[362222711,1748112632750,-166.715829,0.00020987,2]
[362222712,1748112632759,-155.95063402,0.00021259,2]
[362222713,1748112632768,-317.0523094,0.00021817,2]
[362222714,1748112632778,-212.4501065,0.00021891,2]
[362222715,1748112632786,-160.0,0.00021891,2]
[362222716,1748112632795,-160.0,0.00021891,2]
[362222718,1748112632805,-229.12393663,0.00021891,2]
[362222719,1748112632815,-160.0,0.00021891,2]
[362222721,1748112632824,-160.0,0.00021893,2]
[362222723,1748112632833,-894.64583333,0.00021893,2]
[362222725,1748112632842,-160.0,0.00021893,2]
[362222727,1748112632851,-181.10144041,0.00021916,2]
[362222729,1748112632860,-183.9954701,0.00021916,2]
[362222731,1748112632870,-241.60372855,0.00021916,2]
[362222733,1748112632879,-155.0,0.00021916,2]
[362222735,1748112632889,-374.511,0.00021916,2]
[362222737,1748112632898,-450.0,0.00021917,2]
[362222739,1748112632908,-450.0,0.00021917,2]
[362222741,1748112632917,-450.0,0.00021917,2]
[362222743,1748112632926,-450.0,0.00021917,2]
[362222745,1748112632935,-430.0,0.00021917,2]
[362222747,1748112632943,-450.0,0.00021917,2]
[362222749,1748112632953,-450.0,0.00021917,2]
[362222751,1748112632962,-221.3,0.00021917,2]
[362222752,1748112632971,-433.59,0.00021917,2]
[362222753,1748112632980,-500.0,0.00021917,2]
[362222754,1748112632989,-450.0,0.00021917,2]
[362222755,1748112632998,-430.0,0.00021917,2]
[362222756,1748112633007,-450.0,0.00021917,2]
[362222757,1748112633017,-430.0,0.00021917,2]
[362222758,1748112633026,-270.0,0.00021917,2]
[362222759,1748112633036,-430.0,0.00021917,2]
[362222760,1748112633045,-430.0,0.00021917,2]
[362222761,1748112633055,-500.0,0.00021917,2]
[362222762,1748112633064,-210.0,0.00021917,2]
[362222763,1748112633073,-470.0,0.00021917,2]
[362222764,1748112633083,-210.0,0.00021917,2]
[362222765,1748112633092,-210.0,0.00021917,2]
[362222766,1748112633102,-446.82765025,0.00021917,2]
[362222767,1748112633111,-500.0,0.00021917,2]
[362222768,1748112633120,-430.0,0.00021917,2]
[362222769,1748112633129,-430.0,0.00021917,2]
[362222770,1748112633139,-430.0,0.00021917,2]
[362222771,1748112633148,-430.0,0.00021917,2]
[362222772,1748112633159,-430.0,0.00021917,2]
[362222773,1748112633168,-430.0,0.00021917,2]
[362222774,1748112633178,-430.0,0.00021917,2]
[362222775,1748112633187,-430.0,0.00021917,2]
[362222776,1748112633197,-430.0,0.00021917,2]
[362222777,1748112633207,-470.0,0.00021917,2]
[362222778,1748112633216,-470.0,0.00021917,2]
[362222779,1748112633225,-407.26089842,0.00021917,2]
[362222780,1748112633235,-430.0,0.00021917,2]
[362222781,1748112633244,-524.78,0.00021917,2]
[362222782,1748112633253,-430.0,0.00021917,2]
[362222783,1748112633263,-430.0,0.00021917,2]
[362222784,1748112633272,-430.0,0.00021917,2]
[362222785,1748112633282,-450.0,0.00021917,2]
[362222786,1748112633291,-430.0,0.00021917,2]
[362222787,1748112633301,-450.0,0.00021917,2]
[362222788,1748112633311,-402.91643551,0.00021917,2]
[362222789,1748112633320,-430.0,0.00021917,2]
[362222790,1748112633329,-450.0,0.00021917,2]
[362222791,1748112633341,-450.0,0.00021917,2]
[362222792,1748112633351,-430.0,0.00021917,2]
[362222793,1748112633360,-450.0,0.00021917,2]
[362222794,1748112633371,-430.0,0.00021917,2]
[362222795,1748112633380,-430.0,0.00021917,2]
[362222796,1748112633390,-430.0,0.00021917,2]
[362222797,1748112633400,-430.0,0.00021917,2]
[362222798,1748112633409,-447.56,0.00021917,2]
[362222799,1748112633419,-430.0,0.00021917,2]
[362222800,1748112633428,-450.0,0.00021917,2]
[362222801,1748112633438,-450.0,0.00021917,2]
[362222802,1748112633448,-450.0,0.00021917,2]
[362222803,1748112633459,-430.0,0.00021917,2]
[362222804,1748112633468,-383.1,0.00021917,2]
[362222805,1748112633478,-401.46252826,0.00021917,2]
[362222806,1748112633489,-430.0,0.00021917,2]
[362222807,1748112633499,-779.8,0.00021917,2]
[362222808,1748112633508,-779.8,0.00021917,2]
[362222809,1748112633519,-779.8,0.00021917,2]
[362222810,1748112633647,-779.8,0.00021917,2]
[362222811,1748112633658,-779.8,0.00021917,2]
[362222812,1748112633667,-779.8,0.00021917,2]
[362222813,1748112633676,-779.8,0.00021917,2]
[362222814,1748112633685,-779.8,0.00021917,2]
[362222815,1748112633695,-430.0,0.00021917,2]
[362222816,1748112633704,-430.0,0.00021917,2]
[362222817,1748112633713,-430.0,0.00021917,2]
[362222818,1748112633723,-430.0,0.00021917,2]
[362222819,1748112633732,-430.0,0.00021917,2]
[362222820,1748112633741,-450.0,0.00021917,2]
[362222821,1748112633751,-430.0,0.00021917,2]
[362222822,1748112633761,-430.0,0.00021917,2]
[362222823,1748112633771,-430.0,0.00021917,2]
[362222824,1748112633780,-430.0,0.00021917,2]
[362222825,1748112633789,-430.0,0.00021917,2]